lending/lending_fUSD_20250621
["ID","MTS","AMOUNT","RATE_DAILY","PERIOD"]
[366866585,1750528243637,-11005.79473548,0.00023472,2]
[366866586,1750528243647,-50602.47928308,0.00023472,3]
[366866588,1750528243662,-6107.63314,0.00023472,3]
[366866591,1750528243675,-252.94632819,0.00023472,3]
[366866619,1750528245187,-4664.88085404,0.00023372,2]
[366866620,1750528245197,-500.0,0.0002347,2]
[366866621,1750528245207,-14343.91914556,0.00023472,3]
[366866635,1750528261575,5563.0,0.000169,5]
[366866636,1750528454030,156.56,0.00013699,2]
[366866640,1750528841419,202.0,0.0001664,2]
[366866641,1750528871889,202.0,0.0001664,2]
[366866652,1750529201686,202.0,0.00017188,2]
[366866656,1750529321546,201.0,0.00017188,2]
[366866666,1750529431591,-5563.0,0.000175,5]
[366866667,1750529431601,-300.0,0.00018244,2]
[366866668,1750529431611,-202.0,0.00018774,4]
[366866669,1750529431621,-250.0,0.0001925,2]
[366866670,1750529431632,-500.0,0.0001925,2]
[366866671,1750529431644,-151.0,0.00019824,2]
[366866672,1750529431654,-1200.0,0.00020005,2]
[366866673,1750529431663,-300.0,0.00020006,2]
[366866674,1750529431673,-2500.0,0.00020007,2]
[366866675,1750529431684,-300.0,0.00020007,2]
[366866676,1750529431694,-202.0,0.0002036,6]
[366866677,1750529431703,-229.71,0.00020923,2]
[366866678,1750529431713,-250.0,0.00020923,2]
[366866679,1750529431722,-1000.0,0.0002094,2]
[366866680,1750529431732,-4807.53413721,0.00021298,2]
[366866681,1750529431742,-668.30123609,0.000213,5]
[366866682,1750529431751,-668.30123607,0.000213,5]
[366866683,1750529431761,-668.30123607,0.000213,5]
[366866684,1750529431770,-668.30123607,0.000213,5]
[366866685,1750529431779,-668.30123607,0.000213,5]
[366866686,1750529431789,-668.30123607,0.000213,5]
[366866687,1750529431798,-668.30123607,0.000213,5]
[366866688,1750529431808,-545.37864799,0.000213,5]
[366866689,1750529431832,-122.92258808,0.000213,5]
[366866690,1750529431843,-666.0,0.00021316,2]
[366866691,1750529431855,-668.30123607,0.00021383,5]
[366866692,1750529431864,-178.41,0.00021519,2]
[366866693,1750529431874,-3479.65437401,0.00021623,2]
[366866705,1750529436646,156.29,0.00013699,2]
[366866714,1750529437726,-500.0,0.00021551,3]
[366866715,1750529437736,-5638.5165838,0.00021623,2]
[366866716,1750529437778,-7984.23791103,0.00021623,2]
[366866717,1750529437790,-5503.82504299,0.00021623,2]
[366866718,1750529437801,-992.33101744,0.00021623,2]
[366866719,1750529437813,-301.43507073,0.00021623,2]
[366866720,1750529437823,-354.0,0.00021673,2]
[366866721,1750529437833,-668.30123607,0.00021693,5]
[366866722,1750529437842,-1680.0,0.00021888,2]
[366866723,1750529437853,-202.0,0.00021945,8]
[366866724,1750529437863,-164.49,0.00021948,2]
[366866725,1750529437873,-30.26187812,0.0002196,2]
[366866726,1750529437894,-3456.62683376,0.0002196,2]
[366866727,1750529437904,-160.6396813,0.00022,2]
[366866728,1750529437916,-3031.15894819,0.00022,2]
[366866729,1750529437944,-47935.20137051,0.00022,2]
[366866730,1750529437953,-668.30123607,0.00022003,6]
[366866731,1750529437963,-9192.17657608,0.00022007,2]
[366866732,1750529437972,-88047.97,0.0002207,2]
[366866733,1750529437982,-166.55,0.00022199,2]
[366866734,1750529437991,-9192.17657604,0.0002229,2]
[366866735,1750529438001,-151.0,0.00022298,2]
[366866736,1750529438011,-151.0,0.00022298,2]
[366866737,1750529438020,-1957.856,0.00022298,2]
[366866738,1750529438030,-151.0,0.00022298,2]
[366866739,1750529438040,-151.0,0.00022298,2]
[366866740,1750529438050,-151.0,0.00022298,2]
[366866741,1750529438059,-151.0,0.00022298,2]
[366866742,1750529438069,-225.0,0.00022298,2]
[366866743,1750529438079,-500.0,0.00022298,2]
[366866744,1750529438088,-500.0,0.00022298,2]
[366866745,1750529438098,-151.54616944,0.00022298,2]
[366866746,1750529438107,-500.0,0.00022298,2]
[366866747,1750529438117,-500.0,0.00022298,2]
[366866748,1750529438127,-500.0,0.00022298,2]
[366866749,1750529438136,-207.4,0.00022298,2]
[366866750,1750529438145,-500.0,0.00022298,2]
[366866751,1750529438155,-500.0,0.00022298,2]
[366866753,1750529438164,-500.0,0.00022298,2]
[366866755,1750529438174,-500.0,0.00022298,2]
[366866757,1750529438184,-500.0,0.00022298,2]
[366866759,1750529438195,-500.0,0.00022298,2]
[366866761,1750529438204,-540.21175837,0.00022298,2]
[366866763,1750529438214,-668.30123607,0.00022314,7]
[366866764,1750529438224,-2030.296672,0.00022353,2]
[366866765,1750529438234,-2105.41764886,0.00022408,2]
[366866766,1750529438244,-2183.31810187,0.00022463,2]
[366866767,1750529438254,-170.94,0.00022466,2]
[366866768,1750529438264,-150.0,0.00022466,2]
[366866769,1750529438273,-150.0,0.00022466,2]
[366866770,1750529438283,-170.89,0.00022466,2]
[366866771,1750529438292,-150.0,0.00022466,2]
[366866772,1750529438302,-150.0,0.00022466,2]
[366866773,1750529438311,-153.0,0.00022466,2]
[366866774,1750529438321,-170.94,0.00022478,2]
[366866775,1750529438331,-150.0,0.00022478,2]
[366866776,1750529438340,-2264.10087164,0.00022518,2]
[366866777,1750529438350,-237.28,0.00022532,2]
[366866778,1750529438360,-9192.17657604,0.00022572,2]
[366866779,1750529438369,-2347.87260389,0.00022573,2]
[366866780,1750529438379,-2544.539,0.000226,2]
[366866781,1750529438389,-668.30123607,0.00022624,7]
[366866782,1750529438399,-2434.74389024,0.00022628,2]
[366866783,1750529438409,-355.03,0.00022678,2]
[366866784,1750529438419,-150.0,0.00022678,2]
[366866785,1750529438428,-150.0,0.00022678,2]
[366866786,1750529438438,-170.94,0.00022678,2]
[366866787,1750529438448,-2524.82941417,0.00022683,2]
[366866788,1750529438457,-1403.60483184,0.000227,2]
[366866789,1750529438467,-2618.2481025,0.00022738,2]
[366866790,1750529438476,-2715.12328229,0.00022793,2]
[366866791,1750529438486,-451.03649389,0.000228,2]
[366866792,1750529438496,-1321.0822,0.00022819,2]
[366866793,1750529438506,-27346.1018,0.00022819,2]
[366866794,1750529438515,-2815.58284374,0.00022848,2]
[366866795,1750529438525,-10958.82342758,0.000229,3]
[366866796,1750529438535,-1000.0,0.000229,4]
[366866797,1750529438544,-1000.0,0.000229,4]
[366866798,1750529438554,-1000.0,0.000229,4]
[366866799,1750529438564,-1000.0,0.000229,4]
[366866800,1750529438573,-1000.0,0.000229,4]
[366866801,1750529438583,-1000.0,0.000229,4]
[366866802,1750529438592,-1000.0,0.000229,4]
[366866803,1750529438602,-1000.0,0.000229,4]
[366866804,1750529438612,-1000.0,0.000229,4]
[366866805,1750529438621,-1000.0,0.000229,4]
[366866806,1750529438631,-1000.0,0.000229,4]
[366866807,1750529438644,-1000.0,0.000229,4]
[366866808,1750529438654,-1000.0,0.000229,4]
[366866809,1750529438663,-1000.0,0.000229,4]
[366866810,1750529438673,-1000.0,0.000229,4]
[366866811,1750529438683,-1000.0,0.000229,4]
[366866812,1750529438692,-1000.0,0.000229,4]
[366866813,1750529438702,-1000.0,0.000229,4]
[366866814,1750529438713,-1000.0,0.000229,4]
[366866815,1750529438724,-1000.0,0.000229,4]
[366866816,1750529438734,-1000.0,0.000229,4]
[366866817,1750529438744,-1000.0,0.000229,4]
[366866818,1750529438754,-1000.0,0.000229,4]
[366866819,1750529438764,-1000.0,0.000229,4]
[366866820,1750529438775,-1000.0,0.000229,4]
[366866821,1750529438784,-1000.0,0.000229,4]
[366866822,1750529438794,-1000.0,0.000229,4]
[366866823,1750529438804,-1000.0,0.000229,4]
[366866824,1750529438815,-1000.0,0.000229,4]
[366866825,1750529438826,-1000.0,0.000229,4]
[366866826,1750529438836,-1000.0,0.000229,4]
[366866827,1750529438846,-1000.0,0.000229,4]
[366866828,1750529438855,-1000.0,0.000229,4]
[366866829,1750529438864,-1000.0,0.000229,4]
[366866830,1750529438874,-1000.0,0.000229,4]
[366866831,1750529438883,-1000.0,0.000229,4]
[366866832,1750529438893,-1000.0,0.000229,4]
[366866833,1750529438902,-1000.0,0.000229,4]
[366866834,1750529438912,-1000.0,0.000229,4]
[366866835,1750529438922,-876.0,0.000229,4]
[366866836,1750529438932,-834.26476573,0.000229,3]
[366866837,1750529438941,-1315.05624689,0.000229,2]
[366866838,1750529438950,-1315.05624684,0.000229,2]
[366866839,1750529438960,-1315.05624684,0.000229,2]
[366866840,1750529438971,-1315.05624684,0.000229,2]
[366866841,1750529438982,-1315.05624684,0.000229,2]
[366866842,1750529438994,-1315.05624684,0.000229,2]
[366866843,1750529439003,-1315.05624684,0.000229,2]
[366866844,1750529439013,-1315.05624684,0.000229,2]
[366866845,1750529439023,-1315.05624684,0.000229,2]
[366866846,1750529439033,-1315.05624684,0.000229,2]
[366866847,1750529439043,-1315.05624684,0.000229,2]
[366866848,1750529439053,-1315.05624684,0.000229,2]
[366866849,1750529439062,-1315.05624684,0.000229,2]
[366866850,1750529439071,-2919.75940895,0.00022903,2]
[366866851,1750529439081,-188.29,0.00022918,2]
[366866852,1750529439091,-300.29,0.00022919,2]
[366866853,1750529439100,-252.67,0.00022919,2]
[366866854,1750529439109,-322.08,0.00022926,2]
[366866855,1750529439119,-163.58,0.00022926,2]
[366866856,1750529439128,-163.58,0.00022926,2]
[366866857,1750529439137,-668.30123607,0.00022934,8]
[366866858,1750529439147,-1315.05624684,0.00022946,2]
[366866859,1750529439156,-9326.79569068,0.00022957,2]
[366866860,1750529439166,-3027.79050709,0.00022958,2]
[366866861,1750529439175,-824.16393,0.00023002,4]
[366866862,1750529439184,-3139.81875585,0.00023013,2]
[366866863,1750529439194,-1315.05624684,0.00023019,2]
[366866864,1750529439204,-168.0,0.00023021,2]
[366866865,1750529439213,-451.03649384,0.00023057,2]
[366866866,1750529439223,-3255.99204981,0.00023068,2]
[366866867,1750529439232,-297.82498486,0.00023123,2]
[366866868,1750529439242,-250.0,0.00023123,2]
[366866869,1750529439251,-9326.79569063,0.00023134,2]
[366866870,1750529439261,-156.29,0.00023182,2]
[366866871,1750529439271,-246.87,0.00023233,2]
[366866872,1750529439281,-668.30123607,0.00023245,8]
[366866873,1750529439291,-2000.0,0.00023285,2]
[366866874,1750529439301,-200.0,0.00023285,2]
[366866875,1750529439310,-163.58,0.00023288,2]
[366866876,1750529439320,-455.52,0.00023288,2]
[366866877,1750529439330,-455.52,0.00023288,2]
[366866878,1750529439339,-455.52,0.00023288,2]
[366866879,1750529439349,-455.52,0.00023288,2]
[366866880,1750529439358,-9326.79569063,0.00023311,2]
[366866881,1750529439368,-451.03649384,0.00023314,2]
[366866882,1750529439377,-180.78,0.0002333,2]
[366866883,1750529439387,-293.18585938,0.00023363,2]
[366866884,1750529439396,-315.83,0.0002337,2]
[366866885,1750529439406,-150.0,0.0002337,2]
[366866886,1750529439416,-355.03,0.0002337,2]
[366866887,1750529439425,-150.0,0.0002337,2]
[366866888,1750529439435,-355.03,0.0002337,2]
[366866889,1750529439446,-341.66,0.0002337,2]
[366866890,1750529439456,-455.52,0.0002337,2]
[366866891,1750529439466,-455.52,0.0002337,2]
[366866892,1750529439475,-455.52,0.0002337,2]
[366866893,1750529439485,-455.52,0.0002337,2]
[366866894,1750529439494,-162.19579883,0.0002337,2]
[366866896,1750529439504,-5000.0,0.00023373,2]
[366866898,1750529439514,-558.6462,0.00023379,3]
[366866899,1750529439524,-163.91509573,0.0002338,2]
[366866900,1750529439534,-332.27287116,0.0002338,2]
[366866901,1750529439543,-151.0,0.00023387,7]
[366866902,1750529439555,-151.0,0.00023387,7]
[366866903,1750529439564,-151.269193,0.00023387,7]
[366866904,1750529439574,-6904.39647178,0.00023421,2]
[366866905,1750529439584,-362.26261757,0.00023462,2]
[366866906,1750529439595,-485.95131546,0.00023462,2]
[366866907,1750529439605,-151.0,0.00023463,2]
[366866908,1750529439614,-151.0,0.00023463,2]
[366866909,1750529439624,-151.0,0.00023463,2]
[366866910,1750529439633,-4808.3075061,0.00023463,2]
[366866911,1750529439647,-584.0709098,0.00023463,2]
[366866912,1750529439657,-66767.0330001,0.00023463,2]
[366866913,1750529439667,-165.3730858,0.00023463,2]
[366866914,1750529439679,-1902.9183314,0.00023463,2]
[366866915,1750529439688,-125835.9205081,0.00023463,2]
[366866916,1750529439698,-8478.4375896,0.00023463,2]
[366866917,1750529439707,-150.0,0.00023463,2]
[366866918,1750529439719,-2255.2858988,0.00023463,2]
[366866919,1750529439729,-151.0,0.0002347,7]
[366866920,1750529439738,-151.0,0.0002347,7]
[366866921,1750529439748,-151.0,0.0002347,7]
[366866922,1750529439757,-151.0,0.0002347,7]
[366866923,1750529439768,-151.0,0.0002347,7]
[366866924,1750529439777,-151.0,0.0002347,7]
[366866925,1750529439787,-204.900948,0.0002347,7]
[366866926,1750529439796,-204.900948,0.0002347,7]
[366866927,1750529439808,-152.447931,0.0002347,7]
[366866928,1750529439818,-500.0,0.0002347,2]
[366866929,1750529439827,-500.0,0.0002347,2]
[366866930,1750529439836,-500.0,0.0002347,2]
[366866931,1750529439846,-500.0,0.0002347,2]
[366866932,1750529439855,-150.0,0.0002347,2]
[366866933,1750529439865,-500.0,0.0002347,2]
[366866934,1750529439874,-150.0,0.0002347,2]
[366866935,1750529439884,-500.0,0.0002347,2]
[366866936,1750529439893,-500.0,0.0002347,2]
[366866937,1750529439903,-500.0,0.0002347,2]
[366866938,1750529439913,-150.44106238,0.0002347,2]
[366866939,1750529439923,-150.0,0.0002347,2]
[366866940,1750529439933,-500.0,0.0002347,2]
[366866941,1750529439943,-500.0,0.0002347,2]
[366866942,1750529439952,-500.0,0.0002347,2]
[366866943,1750529439962,-500.0,0.0002347,2]
[366866944,1750529439971,-500.0,0.0002347,2]
[366866945,1750529439981,-150.0,0.0002347,2]
[366866946,1750529439990,-500.0,0.0002347,2]
[366866947,1750529440000,-150.49237548,0.0002347,2]
[366866948,1750529440009,-500.0,0.0002347,2]
[366866949,1750529440019,-150.0,0.0002347,2]
[366866950,1750529440029,-500.0,0.0002347,2]
[366866951,1750529440038,-500.0,0.0002347,2]
[366866952,1750529440047,-150.0,0.0002347,2]
[366866953,1750529440056,-500.0,0.0002347,2]
[366866954,1750529440066,-150.0,0.0002347,2]
[366866955,1750529440075,-150.0,0.0002347,2]
[366866956,1750529440357,-150.0,0.0002347,2]
[366866957,1750529440368,-150.0,0.0002347,2]
[366866958,1750529440379,-150.0,0.0002347,2]
[366866959,1750529440389,-500.0,0.0002347,2]
[366866960,1750529440398,-500.0,0.0002347,2]
[366866961,1750529440408,-150.0,0.0002347,2]
[366866962,1750529440418,-500.0,0.0002347,2]
[366866963,1750529440428,-237604.98607031,0.0002347,7]
[366866964,1750529440438,-500.0,0.0002347,2]
[366866965,1750529440450,-500.0,0.0002347,2]
[366866966,1750529440460,-596.0,0.0002347,2]
[366866967,1750529440469,-150.0,0.0002347,2]
[366866968,1750529440478,-500.0,0.0002347,2]
[366866969,1750529440489,-158.21118038,0.0002347,2]
[366866970,1750529440500,-150.0,0.0002347,2]
[366866971,1750529440509,-150.0,0.0002347,2]
[366866972,1750529440519,-150.0,0.0002347,2]
[366866973,1750529440528,-150.0,0.0002347,2]
[366866974,1750529440538,-151.0,0.0002347,2]
[366866975,1750529440548,-151.0,0.0002347,2]
[366866976,1750529440558,-151.0,0.0002347,2]
[366866977,1750529440567,-151.0,0.0002347,2]
[366866978,1750529440577,-151.0,0.0002347,2]
[366866979,1750529440587,-151.0,0.0002347,2]
[366866980,1750529440597,-151.0,0.0002347,2]
[366866981,1750529440607,-151.0,0.0002347,2]
[366866982,1750529440617,-151.0,0.0002347,2]
[366866983,1750529440626,-151.0,0.0002347,2]
[366866984,1750529440636,-151.0,0.0002347,2]
[366866985,1750529440651,-151.0,0.0002347,2]
[366866986,1750529440661,-151.0,0.0002347,2]
[366866987,1750529440671,-4365485.97481896,0.00023472,3]
[366867024,1750529445709,-809.8313795,0.00022855,2]
[366867025,1750529445923,-4749.07713755,0.00022855,2]
[366868370,1750529471625,201.0,0.00017188,2]
[366868371,1750529501650,201.0,0.00017188,2]
[366868375,1750529594758,250.0,0.00015,2]
[366868393,1750529932486,187.0,0.00016712,2]
[366868409,1750530557357,789.0,0.000174,5]
[366868410,1750530557606,156.32,0.00013699,2]
[366868414,1750530631842,-202.0,0.00019531,2]
[366868415,1750530631852,-151.0,0.00019707,2]
[366868416,1750530631862,-49.50836969,0.00019707,2]
[366868417,1750530631873,-123.86163031,0.00019707,2]
[366868418,1750530631884,-234.37328132,0.00019707,2]
[366868419,1750530631894,-156.587,0.00020255,2]
[366868420,1750530631903,-77.06732995,0.00020706,2]
[366868421,1750530632052,-227.20267005,0.00020706,2]
[366868422,1750530632061,-272.79732995,0.00020706,2]
[366868423,1750530632086,-32.00267005,0.00020706,2]
[366868424,1750530632096,-203.5675578,0.00020783,2]
[366868425,1750530632107,-151.0,0.00020803,2]
[366868426,1750530632117,-223.87791399,0.00020883,2]
[366868427,1750530632141,-2736.6827475,0.00020883,2]
[366868428,1750530632151,-300.58,0.00020952,2]
[366868429,1750530632161,-202.0,0.00021217,4]
[366868430,1750530632171,-300.0,0.00021622,2]
[366868431,1750530632181,-300.0,0.00021622,2]
[366868432,1750530632191,-720.0,0.00021622,2]
[366868433,1750530632201,-252.91,0.00021623,2]
[366868434,1750530632211,-305.27,0.00021623,2]
[366868435,1750530632221,-248.37,0.00021623,2]
[366868436,1750530632231,-300.29,0.00021623,2]
[366868437,1750530632241,-251.87,0.00021623,2]
[366868438,1750530632251,-248.66,0.00021623,2]
[366868439,1750530632261,-302.79,0.00021623,2]
[366868440,1750530632273,-253.24,0.00021623,2]
[366868441,1750530632284,-250.75,0.00021623,2]
[366868443,1750530632294,-302.29,0.00021623,2]
[366868445,1750530632303,-247.45,0.00021623,2]
[366868446,1750530632313,-252.1,0.00021623,2]
[366868448,1750530632323,-301.78,0.00021623,2]
[366868451,1750530632334,-254.95,0.00021623,2]
[366868453,1750530632343,-246.76,0.00021623,2]
[366868454,1750530632353,-305.41,0.00021623,2]
[366868456,1750530632362,-200.0,0.00021708,2]
[366868458,1750530632372,-164.43,0.00021747,2]
[366868460,1750530632382,-6411.68,0.00021763,2]
[366868462,1750530632391,-566.29,0.00021766,2]
[366868464,1750530632401,-186.25,0.00021766,2]
[366868466,1750530632410,-2667.97,0.00021847,2]
[366868468,1750530632420,-1000.0,0.00021896,2]
[366868470,1750530632430,-35576.92510831,0.00022,2]
[366868472,1750530632440,-500.0,0.00022051,2]
[366868474,1750530632449,-19622.58488382,0.00022144,2]
[366868478,1750530632478,-4277.41511618,0.00022144,2]
[366868480,1750530632489,-19571.04,0.00022148,2]
[366868482,1750530632498,-150.0,0.00022193,2]
[366868484,1750530632507,-563.46341381,0.00022209,2]
[366868500,1750530637707,-102.53658619,0.00022209,2]
[366868501,1750530637717,-263.33352933,0.00022209,2]
[366868502,1750530637737,-660.08647067,0.00022209,2]
[366868503,1750530637747,-34.98352633,0.00022298,2]
[366868504,1750530637759,-172.41647367,0.00022298,2]
[366868505,1750530637773,-879.33203089,0.00022298,2]
[366868506,1750530637791,-1078.52396911,0.00022298,2]
[366868507,1750530637800,-151.0,0.00022298,2]
[366868508,1750530637810,-1000.0,0.00022298,4]
[366868509,1750530637819,-1000.0,0.00022298,4]
[366868510,1750530637828,-1000.0,0.00022298,4]
[366868511,1750530637838,-1000.0,0.00022298,4]
[366868512,1750530637847,-1000.0,0.00022298,4]
[366868513,1750530637857,-1000.0,0.00022298,4]
[366868514,1750530637867,-14760.19138527,0.00022316,2]
[366868515,1750530637876,-2030.296672,0.00022353,2]
[366868516,1750530637886,-2105.41764886,0.00022408,2]
[366868517,1750530637896,-9344.70382613,0.00022462,2]
[366868518,1750530637906,-2183.31810187,0.00022463,2]
[366868519,1750530637915,-164.94,0.00022479,2]
[366868520,1750530637925,-156.32,0.00022505,2]
[366868521,1750530637935,-2264.10087164,0.00022518,2]
[366868522,1750530637944,-500.0,0.00022521,2]
[366868523,1750530637954,-168.0,0.00022548,2]
[366868524,1750530637963,-1000.0,0.00022548,4]
[366868525,1750530637973,-876.0,0.00022548,4]
[366868526,1750530637983,-790.35,0.00022548,2]
[366868527,1750530637992,-150.99,0.00022562,2]
[366868528,1750530638002,-336.32,0.00022562,2]
[366868530,1750530638012,-3069.49,0.00022562,2]
[366868532,1750530638022,-999.99,0.00022562,2]
[366868534,1750530638031,-150.99,0.00022562,2]
[366868536,1750530638042,-4335.77,0.00022562,2]
[366868538,1750530638051,-6655.82,0.00022562,2]
[366868540,1750530638061,-9999.99,0.00022562,2]
[366868542,1750530638071,-1825.38,0.00022562,2]
[366868544,1750530638080,-1000.0,0.00022562,4]
[366868546,1750530638091,-1000.0,0.00022562,4]
[366868548,1750530638099,-1000.0,0.00022562,4]
[366868550,1750530638109,-1000.0,0.00022562,4]
[366868552,1750530638118,-1000.0,0.00022562,4]
[366868553,1750530638127,-1000.0,0.00022562,4]
[366868554,1750530638137,-1000.0,0.00022562,4]
[366868555,1750530638146,-1000.0,0.00022562,4]
[366868556,1750530638155,-1000.0,0.00022562,4]
[366868557,1750530638164,-2347.87260389,0.00022573,2]
[366868558,1750530638173,-500.0,0.0002258,2]
[366868559,1750530638183,-415.0,0.00022609,2]
[366868560,1750530638192,-2016.42467994,0.00022628,2]
[366868561,1750530638202,-1579.0,0.0002263,2]
[366868562,1750530638211,-415.0,0.00022686,2]
[366868563,1750530638220,-9344.70382604,0.00022694,2]
[366868564,1750530638230,-359.56951404,0.00022736,2]
[366868565,1750530638240,-246.95121254,0.00022745,4]
[366868566,1750530638249,-150.0,0.00022745,4]
[366868567,1750530638259,-150.0,0.00022745,4]
[366868568,1750530638268,-414.46807123,0.00022755,2]
[366868569,1750530638278,-110000.0,0.000228,7]
[366868570,1750530638288,-254.69,0.00022855,2]
[366868571,1750530638297,-412.47555323,0.000229,8]
[366868572,1750530638307,-188.29,0.00022902,2]
[366868573,1750530638317,-202.0,0.00022903,6]
[366868574,1750530638326,-9344.70382604,0.00022926,2]
[366868575,1750530638335,-2299.999999,0.00023,2]
[366868576,1750530638345,-824.16393,0.00023002,4]
[366868577,1750530638354,-414.46807119,0.00023011,2]
[366868578,1750530638364,-415.0,0.00023012,2]
[366868579,1750530638373,-415.0,0.00023063,2]
[366868580,1750530638383,-412.47555323,0.00023072,8]
[366868581,1750530638393,-461.95,0.00023095,2]
[366868582,1750530638403,-798.09,0.00023095,2]
[366868583,1750530638412,-461.95,0.00023095,2]
[366868584,1750530638421,-9344.70382604,0.00023158,2]
[366868585,1750530638431,-323.0,0.00023186,2]
[366868586,1750530638440,-1317.61197892,0.00023203,2]
[366868587,1750530638450,-323.0,0.00023211,2]
[366868588,1750530638459,-412.47555323,0.00023245,8]
[366868589,1750530638469,-414.46807119,0.00023268,2]
[366868590,1750530638479,-2000.0,0.00023284,2]
[366868591,1750530638488,-200.0,0.00023284,2]
[366868592,1750530638498,-992.0,0.000233,2]
[366868593,1750530638508,-415.0,0.00023319,2]
[366868594,1750530638518,-991.5848,0.00023363,2]
[366868595,1750530638531,-2500.0,0.00023363,2]
[366868596,1750530638540,-15519.8,0.00023368,2]
[366868598,1750530638550,-2465.31,0.00023368,2]
[366868600,1750530638560,-10671.022801,0.0002337,2]
[366868602,1750530638570,-293.18585938,0.00023373,2]
[366868604,1750530638579,-162.19579883,0.00023373,2]
[366868606,1750530638589,-163.91509573,0.0002338,2]
[366868608,1750530638598,-415.34108895,0.0002338,2]
[366868610,1750530638608,-558.6462,0.0002338,3]
[366868612,1750530638618,-5000.0,0.0002338,2]
[366868613,1750530638627,-9344.70382604,0.0002339,2]
[366868614,1750530638636,-180.78,0.00023405,2]
[366868615,1750530638646,-412.47555323,0.00023417,9]
[366868616,1750530638656,-460.26968639,0.00023425,2]
[366868617,1750530638665,-460.26968639,0.00023438,2]
[366868618,1750530638675,-460.26968639,0.0002345,2]
[366868619,1750530638684,-460.26968639,0.00023463,2]
[366868620,1750530638693,-151.0,0.00023463,2]
[366868621,1750530638703,-88604.034075,0.00023463,2]
[366868622,1750530638712,-566.7053948,0.00023463,2]
[366868623,1750530638721,-2491.4167724,0.00023463,2]
[366868624,1750530638731,-41624.6071126,0.00023463,2]
[366868625,1750530638741,-5882.6663484,0.00023463,2]
[366868626,1750530638750,-3446.0860731,0.00023463,2]
[366868627,1750530638762,-362.26261757,0.00023468,2]
[366868628,1750530638777,-485.95131546,0.00023468,2]
[366868629,1750530638787,-323.0,0.00023469,2]
[366868630,1750530638796,-500.0,0.0002347,2]
[366868631,1750530638806,-500.0,0.0002347,2]
[366868632,1750530638816,-150.49237548,0.0002347,2]
[366868633,1750530638826,-500.0,0.0002347,2]
[366868634,1750530638835,-150.0,0.0002347,2]
[366868635,1750530638845,-500.0,0.0002347,2]
[366868636,1750530638854,-500.0,0.0002347,2]
[366868637,1750530638863,-150.0,0.0002347,2]
[366868638,1750530638873,-150.0,0.0002347,2]
[366868639,1750530638883,-150.0,0.0002347,2]
[366868640,1750530638892,-150.0,0.0002347,2]
[366868641,1750530638901,-150.0,0.0002347,2]
[366868642,1750530638911,-500.0,0.0002347,2]
[366868643,1750530638921,-150.0,0.0002347,2]
[366868644,1750530638930,-500.0,0.0002347,2]
[366868645,1750530638940,-500.0,0.0002347,2]
[366868646,1750530638950,-500.0,0.0002347,2]
[366868647,1750530638959,-500.0,0.0002347,2]
[366868648,1750530638969,-150.0,0.0002347,2]
[366868649,1750530638979,-500.0,0.0002347,2]
[366868650,1750530638988,-150.0,0.0002347,2]
[366868651,1750530638997,-500.0,0.0002347,2]
[366868652,1750530639007,-500.0,0.0002347,2]
[366868653,1750530639017,-500.0,0.0002347,2]
[366868654,1750530639027,-150.44106238,0.0002347,2]